bitfinex/quotes_ETHUSD_20250622
["timestamp","ask_amount","ask_price","bid_price","bid_amount"]
[1750627930974,2.133,2186.8,2186.2,0.04573927]
[1750627931184,2.1935,2186.8,2186.2,4.57411814]
[1750627931538,11.0505,2186.7,2186.2,4.57411814]
[1750627931739,11.0505,2186.7,2186.3,4.57387029]
[1750627932044,10.99,2186.7,2186.2,4.6198267]
[1750627932249,10.99,2186.7,2186.3,4.63621125]
[1750627932874,11.0505,2186.7,2186.2,10.58643045]
[1750627933172,0.0605,2186.6,2186.2,10.0]
[1750627933376,0.8278,2186.5,2185.8,10.45751314]
[1750627933586,0.8278,2186.5,2185.9,4.62048219]
[1750627935078,0.8278,2186.5,2185.9,4.57474161]
[1750627936184,0.8278,2186.5,2186.1,10.0]
[1750627936380,0.0564,2186.4,2186.0,10.0]
[1750627939081,0.0564,2186.4,2186.1,4.57424691]
[1750627939256,0.0564,2186.4,2186.2,10.0]
[1750627939451,0.0564,2186.4,2186.1,10.0]
[1750627939645,0.7673,2186.5,2186.0,10.0]
[1750627939885,0.0564,2186.4,2186.0,10.0]
[1750627940097,0.7673,2186.5,2186.0,10.0]
[1750627940248,10.99,2186.7,2186.0,6.07770688]
[1750627940249,8.3862,2186.7,2186.0,6.07770688]
[1750627940603,0.0564,2186.6,2186.1,10.0]
[1750627940787,8.3862,2186.7,2186.1,10.0]
[1750627941585,0.0564,2186.6,2186.1,10.0]
[1750627941887,8.3862,2186.7,2186.1,10.0]
[1750627942084,0.0564,2186.6,2186.1,10.0]
[1750627942796,0.0564,2186.6,2186.1,14.57434223]
[1750627943009,8.3862,2186.7,2186.1,14.57434223]
[1750627944871,0.0564,2186.6,2186.1,14.57434223]
[1750627945206,8.3862,2186.7,2186.1,10.0]
[1750627945561,0.0564,2186.6,2186.1,10.0]
[1750627946063,8.3862,2186.7,2186.1,10.0]
[1750627946505,0.0564,2186.6,2186.1,10.0]
[1750627946655,8.3862,2186.7,2186.1,10.0]
[1750627946998,0.0564,2186.6,2186.1,10.0]
[1750627947300,0.0564,2186.6,2186.1,4.57433603]
[1750627947497,0.0564,2186.6,2186.2,10.0]
[1750627948122,0.0564,2186.6,2186.1,10.0]
[1750627948273,8.3862,2186.7,2186.1,10.0]
[1750627948466,0.6064,2186.6,2185.9,14.57470127]
[1750627948862,0.0564,2186.5,2185.9,14.57470127]
[1750627950009,0.55,2186.6,2185.9,14.63140127]
[1750627950010,0.888,2186.4,2185.9,14.63140127]
[1750627950996,0.888,2186.4,2186.1,10.0]
[1750627951502,0.888,2186.4,2185.9,10.0567]
[1750627951705,0.0564,2186.3,2185.9,10.0]
[1750627952496,0.0564,2186.3,2185.9,4.57472883]
[1750627952694,0.0564,2186.3,2185.8,14.57490783]
[1750627952877,0.0564,2186.3,2185.8,14.63160783]
[1750627953078,0.0564,2186.3,2185.9,4.57472787]
[1750627954420,0.8316,2186.4,2185.9,4.57472787]
[1750627954705,0.8051,2186.3,2185.6,10.0]
[1750627954904,2.128,2186.2,2185.8,10.0]
[1750627955210,0.0564,2186.1,2185.8,10.0]
[1750627955708,2.128,2186.2,2185.8,10.0]
[1750627955916,0.8051,2186.0,2185.5,4.57561198]
[1750627956111,8.3651,2186.0,2185.4,4.57568441]
[1750627956408,0.6064,2185.9,2185.3,4.62171034]
[1750627956613,0.0564,2185.8,2185.4,14.57569864]
[1750627958002,0.0564,2185.8,2185.4,10.0]
[1750627958525,0.0564,2185.8,2185.5,10.0]
[1750627958730,0.55,2185.9,2185.5,4.57560342]
[1750627959030,0.55,2185.9,2185.6,10.0]
[1750627960920,8.3651,2186.0,2185.7,0.0567]
[1750627961213,8.3651,2186.0,2185.7,4.63184253]
[1750627961416,8.3651,2186.0,2185.6,14.63203857]
[1750627962522,8.3651,2186.0,2185.7,4.57514978]
[1750627962818,8.3651,2186.0,2185.6,10.0567]
[1750627962994,8.3651,2186.0,2185.6,4.63205441]
[1750627963194,8.3651,2186.0,2185.7,10.0]
[1750627963498,8.3651,2186.0,2185.6,4.63205441]
[1750627964392,8.3651,2186.0,2185.7,10.0]
[1750627964599,8.3651,2186.0,2185.7,14.57512467]
[1750627965011,8.3651,2186.0,2185.7,10.0]
[1750627965213,8.3651,2186.0,2185.0,1.310287]
[1750627965399,0.0579,2185.9,2185.4,4.5758094]
[1750627965735,8.3651,2186.0,2185.5,10.0]
[1750627966607,0.0579,2185.9,2185.5,10.0]
[1750627968003,8.3651,2186.0,2185.5,10.0]
[1750627968597,0.0579,2185.9,2185.5,10.0]
[1750627969188,0.0579,2185.9,2185.5,4.57560217]
[1750627969394,8.3651,2186.0,2185.5,4.57560217]
[1750627969589,8.3651,2186.0,2185.4,10.24568434]
[1750627969831,8.3651,2186.0,2185.6,10.0]
[1750627970130,8.423,2186.0,2185.6,10.0]
[1750627970329,8.3651,2186.0,2185.6,10.0]
[1750627970642,0.0579,2185.9,2185.6,10.0]
[1750627971230,8.3651,2186.0,2185.7,0.0618]
[1750627971231,0.8051,2186.0,2185.7,0.0618]
[1750627971440,0.8051,2186.0,2185.8,0.0618]
[1750627971797,10.5189,2186.2,2185.8,0.0618]
[1750627973375,2.9609,2186.2,2185.8,0.0618]
[1750627973672,2.9609,2186.2,2185.9,4.63641109]
[1750627973832,2.128,2186.2,2185.9,5.38151109]
[1750627974024,2.128,2186.2,2185.9,6.99985063]
[1750627974219,2.128,2186.2,2185.9,6.93805063]
[1750627974466,2.128,2186.2,2186.0,0.0618]
[1750627975670,2.128,2186.2,2186.0,4.6363361]
[1750627975845,8.3542,2186.5,2186.0,4.6363361]
[1750627976045,8.3542,2186.5,2186.0,0.0618]
[1750627976261,8.4121,2186.5,2186.0,0.0618]
[1750627976839,0.8541,2186.5,2186.1,4.57430601]
[1750627977056,0.8541,2186.5,2186.0,4.63628676]
[1750627977246,0.7962,2186.5,2186.1,0.0618]
[1750627978259,0.7962,2186.5,2186.1,4.63615598]
[1750627978658,11.5999,2186.7,2186.1,6.79807475]
[1750627978659,11.7703,2186.7,2186.1,6.79807475]
[1750627978952,11.7703,2186.7,2186.1,2.16200806]
[1750627978953,21.4473,2186.7,2186.1,2.16200806]
[1750627979170,21.4473,2186.7,2186.1,4.63605798]
[1750627980258,0.0579,2186.6,2186.0,10.0]
[1750627980631,21.4473,2186.7,2186.0,14.57456503]
[1750627980832,21.5052,2186.7,2186.1,0.0618]
[1750627981342,0.0579,2186.7,2186.2,0.7824]
[1750627981531,8.105,2186.8,2186.2,0.7824]
[1750627982239,0.8179,2186.6,2186.0,14.57448705]
[1750627982565,0.8758,2186.6,2186.0,17.64785613]
[1750627982736,0.8758,2186.6,2186.1,4.57433195]
[1750627982946,0.8758,2186.6,2186.0,17.58601352]
[1750627983654,0.8758,2186.6,2186.1,4.68188192]
[1750627983844,8.4308,2186.6,2186.1,4.68188192]
[1750627984671,8.4308,2186.6,2186.1,0.10753849]
[1750627985066,0.0579,2186.5,2186.0,14.57446619]
[1750627985259,0.0579,2186.5,2186.1,1.60366662]
[1750627985642,8.3729,2186.6,2186.1,6.22364688]
[1750627985874,8.4308,2186.6,2186.1,1.60366662]
[1750627986080,8.4308,2186.6,2186.1,0.0618]
[1750627986546,8.3729,2186.6,2186.2,4.63580373]
[1750627986876,7.555,2186.6,2186.2,4.63580373]
[1750627987639,7.555,2186.6,2186.2,4.57400373]
[1750627987841,7.555,2186.6,2186.3,1.50940123]
[1750627989577,7.6129,2186.6,2186.3,1.50940123]
[1750627992877,7.555,2186.6,2186.3,11.50940123]
[1750627994647,7.555,2186.6,2186.3,16.08320002]
[1750627994866,7.555,2186.6,2186.4,5.45831734]
[1750627995072,7.555,2186.6,2186.5,1.69677186]
[1750627996382,9.7299,2186.9,2186.5,1.75407186]
[1750627996750,2.121,2186.9,2186.5,1.75407186]
[1750627997687,2.1789,2186.9,2186.5,1.69677186]
[1750627997985,0.0579,2186.8,2186.5,1.69677186]
[1750627998206,0.0579,2186.8,2186.6,0.25240719]
[1750627999556,2.121,2186.9,2186.6,0.25240719]
[1750627999756,2.1789,2186.9,2186.5,1.74250211]
[1750628000588,0.0579,2186.8,2186.5,0.04573025]
[1750628000890,0.0579,2186.8,2186.2,0.8104]
[1750628001391,0.7885,2186.6,2185.7,0.8104]
[1750628001593,7.549,2186.5,2185.7,0.8104]
[1750628001791,0.0579,2186.3,2185.7,5.38556981]
[1750628001968,0.0579,2186.3,2185.7,8.40579983]
[1750628002367,0.0579,2186.3,2185.7,8.40576862]
[1750628002583,0.0579,2186.3,2185.7,3.83063002]
[1750628002772,0.8172,2186.2,2185.7,3.83063002]
[1750628002970,0.0579,2186.1,2185.7,3.83063002]
[1750628003583,0.0579,2186.1,2185.5,15.39367546]
[1750628003894,0.0579,2186.1,2185.6,0.04574847]
[1750628004098,0.8172,2186.2,2185.6,0.04574847]
[1750628004665,0.0579,2186.1,2185.6,0.04574847]
[1750628004994,0.8751,2186.0,2184.9,14.76055928]
[1750628005192,0.8172,2185.7,2185.1,2.33001248]
[1750628005494,0.0579,2185.6,2185.1,1.51191248]
[1750628005701,0.8172,2185.7,2185.1,11.51191248]
[1750628005881,0.8172,2185.7,2185.1,1.51191248]
[1750628006087,0.0579,2185.5,2185.0,4.57664808]
[1750628006284,0.55,2185.6,2185.1,10.0]
[1750628006795,0.0579,2185.5,2185.0,10.0]
[1750628007006,0.55,2185.6,2185.0,10.0]
[1750628007675,0.0579,2185.5,2185.0,10.0]
[1750628007863,0.55,2185.6,2185.0,10.0]
[1750628008060,0.8172,2185.7,2185.0,13.02222848]
[1750628008400,0.8751,2185.7,2185.1,0.04576334]
[1750628008586,0.0579,2185.6,2185.1,4.62217449]
[1750628008899,0.8172,2185.7,2185.1,4.62208698]
[1750628009095,0.0579,2185.6,2185.1,4.62208698]
[1750628009272,0.0579,2185.6,2185.3,10.0]
[1750628009697,0.0579,2185.6,2185.3,14.57597196]
[1750628010210,0.0579,2185.6,2185.0,14.63390485]
[1750628010398,0.0579,2185.6,2185.3,14.57602371]
[1750628011604,0.0579,2185.6,2185.3,10.0]
[1750628012390,0.7707,2185.6,2185.1,14.57642795]
[1750628012715,0.0579,2185.5,2185.1,14.57642795]
[1750628013394,0.0579,2185.5,2185.3,10.0]
[1750628014621,0.8286,2185.6,2185.3,10.0]
[1750628014813,0.0579,2185.7,2185.4,10.0]
[1750628015018,0.7707,2185.8,2185.4,10.0]
[1750628015422,0.0579,2185.7,2185.4,10.0]
[1750628015756,0.7707,2185.8,2185.4,10.0]
[1750628016016,0.7707,2185.8,2185.1,14.76032534]
[1750628016218,0.7707,2185.8,2185.2,10.04575708]
[1750628016386,0.0579,2185.7,2185.2,14.57623254]
[1750628016585,0.7707,2185.8,2185.2,14.57623254]
[1750628017095,0.0579,2185.7,2185.2,14.57623254]
[1750628017495,0.7707,2185.8,2185.2,10.0]
[1750628017924,0.0579,2185.7,2185.2,10.0]
[1750628018427,0.7707,2185.8,2185.2,10.0]
[1750628018627,0.7707,2185.8,2185.2,13.24971673]
[1750628018835,0.8286,2185.8,2185.2,17.82590936]
[1750628019325,0.7707,2185.8,2185.2,13.24971673]
[1750628019526,0.7707,2185.8,2185.3,0.04575542]
[1750628019830,0.0579,2185.7,2185.3,0.10305542]
[1750628020031,0.0579,2185.7,2185.3,0.04575542]
[1750628020746,0.7707,2185.8,2185.4,0.0573]
[1750628021315,0.7707,2185.8,2185.5,0.0573]
[1750628021609,0.7707,2185.8,2185.5,0.10305037]
[1750628022636,2.112,2185.9,2185.6,0.0573]
[1750628023812,2.112,2185.9,2185.6,0.10305041]
[1750628024340,2.113,2186.3,2185.7,10.0573]
[1750628024559,2.113,2186.3,2185.9,0.0573]
[1750628024840,0.7942,2186.6,2186.0,24.81571992]
[1750628025043,0.7942,2186.6,2186.2,15.55338657]
[1750628025220,0.7942,2186.6,2186.2,17.62805533]
[1750628025421,0.7942,2186.6,2186.3,10.0]
[1750628025743,0.852,2186.6,2186.3,10.0]
[1750628025909,0.7942,2186.6,2186.3,10.0]
[1750628026309,0.7942,2186.6,2186.3,14.63120605]
[1750628026510,0.7942,2186.6,2186.4,1.17504797]
[1750628027042,0.7976,2186.8,2186.4,1.23234797]
[1750628027248,0.8554,2186.8,2186.4,1.17504797]
[1750628027421,0.8016,2186.7,2186.2,2.01736876]
[1750628027617,0.8594,2186.7,2186.2,10.0573]
[1750628028138,0.8594,2186.7,2186.2,0.0573]
[1750628028642,0.55,2186.8,2186.2,10.0573]
[1750628028834,0.55,2186.8,2186.2,14.6314157]
[1750628029036,0.6078,2186.8,2186.3,2.5647]
[1750628029211,0.55,2186.8,2186.3,2.5647]
[1750628029411,0.0578,2186.7,2186.3,2.5647]
[1750628030155,0.55,2186.8,2186.2,10.0]
[1750628030649,0.0578,2186.6,2186.1,10.0]
[1750628031210,0.8329,2186.7,2186.1,10.0]
[1750628031809,0.0578,2186.6,2186.1,10.0]
[1750628032016,0.0578,2186.6,2186.1,14.57432727]
[1750628032531,0.0578,2186.6,2186.1,10.0]
[1750628032845,0.8329,2186.7,2186.1,10.0]
[1750628033156,0.0578,2186.6,2186.1,10.0]
[1750628033659,0.8329,2186.7,2186.1,10.0]
[1750628034141,0.55,2186.8,2185.9,10.0]
[1750628034142,0.8329,2186.5,2185.9,10.0]
[1750628034453,0.0578,2186.4,2186.1,10.0]
[1750628034752,0.8093,2186.3,2185.7,10.0]
[1750628034961,0.8093,2186.3,2185.9,10.0]
[1750628035118,0.0578,2186.2,2185.9,10.0]
[1750628035319,0.0578,2186.1,2185.8,10.0]
[1750628036366,0.0578,2186.1,2185.7,4.57517946]
[1750628036522,0.0578,2186.1,2185.7,5.74605397]
[1750628036856,0.0578,2186.1,2185.8,10.0]
[1750628037549,0.0578,2186.2,2185.8,10.0]
[1750628037757,0.7515,2186.3,2185.7,5.74605397]
[1750628038060,0.0578,2186.2,2185.7,5.74605397]
[1750628038350,0.7515,2186.3,2185.7,1.17087451]
[1750628038553,0.7515,2186.3,2185.6,6.34969288]
[1750628038848,0.7699,2186.1,2185.6,6.34969288]
[1750628039035,0.8277,2186.1,2185.8,10.0]
[1750628039239,0.8277,2186.1,2185.6,16.34977355]
[1750628039427,0.8277,2186.1,2185.8,10.0]
[1750628039631,0.0578,2186.0,2185.6,1.71711692]
[1750628039832,0.0578,2186.0,2185.6,6.29250395]
[1750628040274,0.0578,2186.0,2185.6,1.71711692]
[1750628040924,0.8734,2186.0,2185.3,4.57598236]
[1750628041130,2.103,2185.9,2185.3,0.0573]
[1750628041552,2.1608,2185.9,2185.3,0.0573]
[1750628041968,2.1608,2185.9,2185.3,4.57600832]
[1750628041969,0.0578,2185.8,2185.3,4.57600832]
[1750628042179,2.103,2185.9,2185.3,4.57600832]
[1750628042180,0.8156,2186.0,2185.5,20.18388434]
[1750628042385,0.8156,2186.0,2185.6,4.57540263]
[1750628042539,0.8156,2186.0,2185.7,0.0573]
[1750628042745,0.8156,2186.0,2185.7,4.63243061]
[1750628043666,0.8156,2186.0,2185.8,4.57482588]
[1750628044766,0.8156,2186.0,2185.7,4.63241156]
[1750628044942,0.8156,2186.0,2185.7,7.57157946]
[1750628045440,0.7675,2186.2,2185.7,7.57157946]
[1750628045759,0.7675,2186.2,2185.7,7.61732571]
[1750628045966,0.7675,2186.2,2185.8,0.0573]
[1750628046262,0.7675,2186.2,2185.8,4.63222156]
[1750628046432,0.7675,2186.2,2185.8,0.0573]
[1750628046768,0.7675,2186.2,2185.8,4.63228193]
[1750628047489,0.7675,2186.2,2185.8,0.0573]
[1750628047794,0.8253,2186.2,2185.8,0.0573]
[1750628048788,0.8253,2186.2,2185.7,7.51426694]
[1750628049091,0.8253,2186.2,2185.7,7.57156694]
[1750628049291,0.8253,2186.2,2185.8,5.44469142]
[1750628049591,0.7675,2186.2,2185.8,5.44469142]
[1750628049794,0.7675,2186.2,2185.9,14.63206651]
[1750628051059,0.7675,2186.2,2185.7,2.9391679]
[1750628051386,0.8253,2186.2,2185.7,10.0]
[1750628051571,0.8253,2186.2,2185.7,10.0573]
[1750628053690,0.8253,2186.2,2185.7,0.0573]
[1750628054000,0.8253,2186.2,2185.7,10.0573]
[1750628055254,0.7675,2186.2,2185.4,0.8211]
[1750628055459,0.8172,2186.0,2185.4,4.63254464]
[1750628055691,0.0581,2185.9,2185.5,1.46325446]
[1750628056083,0.8172,2186.0,2185.5,1.46325446]
[1750628056462,0.0581,2185.9,2185.5,1.46325446]
[1750628056658,0.0581,2185.9,2185.3,10.0]
[1750628056889,0.774,2185.8,2185.1,4.57629668]
[1750628057093,0.0581,2185.7,2185.1,4.57629668]
[1750628057463,0.0581,2185.7,2185.2,10.0]
[1750628057895,0.774,2185.8,2185.2,10.0]
[1750628058197,0.6081,2185.5,2184.8,0.774]
[1750628058398,0.0581,2185.3,2184.7,4.57724135]
[1750628058874,0.0581,2185.3,2184.8,10.0]
[1750628059394,0.55,2185.5,2184.6,4.57734604]
[1750628059395,0.8147,2185.2,2184.6,4.57734604]
[1750628059709,0.7566,2185.2,2184.7,2.01931855]
[1750628059891,0.0581,2185.1,2184.7,2.01931855]
[1750628060208,0.0581,2185.1,2184.7,12.01931855]
[1750628060695,0.0581,2185.1,2184.7,16.59646403]
[1750628060990,0.0581,2185.1,2184.8,4.57706338]
[1750628061201,0.0581,2185.1,2184.8,6.74021374]
[1750628061387,0.0581,2185.1,2184.8,6.69444799]
[1750628061578,0.7566,2185.2,2184.8,6.69444799]
[1750628061895,0.8147,2185.2,2184.8,2.16315035]
[1750628062590,0.8147,2185.2,2184.8,6.7402106]
[1750628062796,0.8147,2185.2,2184.8,2.16315035]
[1750628063290,0.8147,2185.2,2184.8,6.69442642]
[1750628064098,0.8147,2185.2,2184.8,6.7401921]
[1750628064285,2.104,2185.7,2184.7,12.01931855]
[1750628064286,0.7889,2185.4,2184.7,12.01931855]
[1750628064592,0.0581,2185.0,2184.6,14.57746227]
[1750628065966,0.0581,2184.8,2184.5,10.0]
[1750628066195,0.0581,2184.8,2184.3,14.57811088]
[1750628066400,0.0581,2184.8,2184.4,4.57787578]
[1750628066567,0.0581,2184.8,2184.4,6.97422944]
[1750628066767,0.0581,2184.8,2184.3,4.57804622]
[1750628066968,0.0581,2184.6,2184.0,10.98388434]
[1750628067169,0.0581,2184.6,2184.1,4.57842665]
[1750628067363,0.0581,2184.6,2184.2,14.57833393]
[1750628067567,0.0581,2184.6,2184.2,4.57833393]
[1750628070201,0.0581,2184.6,2184.1,10.0]
[1750628070504,0.8254,2184.3,2183.8,4.63584021]
[1750628070801,0.8254,2184.3,2183.9,10.0]
[1750628071302,0.8254,2184.3,2183.8,5.87275451]
[1750628071676,0.8254,2184.3,2183.8,1.2937143]
[1750628071981,0.7673,2184.1,2183.8,10.0]
[1750628072183,0.8254,2184.1,2183.7,10.0]
[1750628072503,0.8254,2184.1,2183.7,14.57934939]
[1750628073319,0.8254,2184.1,2183.7,10.0]
[1750628073974,0.8254,2184.1,2183.0,0.23136142]
[1750628073975,0.6081,2184.0,2183.2,11.01488434]
[1750628074170,0.0581,2183.8,2183.2,11.47981997]
[1750628074374,0.0581,2183.8,2183.3,10.0]
[1750628074591,0.0581,2183.8,2183.3,10.0568]
[1750628074991,0.0581,2183.8,2183.3,14.63702187]
[1750628075202,0.0581,2183.8,2183.3,10.0568]
[1750628075506,0.0581,2183.6,2183.0,4.58064882]
[1750628075704,0.8861,2183.5,2182.9,14.82171854]
[1750628075884,0.828,2183.5,2183.0,10.0]
[1750628076086,0.0581,2183.4,2183.0,10.0]
[1750628076275,0.828,2183.3,2183.0,10.0]
[1750628076477,0.8861,2183.3,2182.8,14.58112689]
[1750628076671,0.828,2183.3,2182.7,14.82207608]
[1750628076877,0.828,2183.3,2182.6,4.58153706]
[1750628077109,0.7568,2183.1,2182.6,1.6549996]
[1750628077307,0.8149,2183.1,2182.6,1.6549996]
[1750628077507,0.8149,2183.1,2182.6,11.6549996]
[1750628077708,0.8149,2183.1,2182.5,10.24068434]
[1750628078012,0.0581,2183.0,2182.6,10.0]
[1750628078175,0.0581,2182.9,2182.6,10.0]
[1750628078919,0.7568,2183.0,2182.6,10.0]
[1750628079225,0.8149,2183.0,2182.6,10.0]
[1750628079975,2.69094421,2183.3,2182.9,14.82162013]
[1750628080180,2.69094421,2183.3,2183.0,4.63764562]
[1750628080516,2.69094421,2183.3,2183.0,4.58084562]
[1750628080725,2.69094421,2183.3,2182.9,14.76485652]
[1750628081012,2.69094421,2183.3,2183.1,4.58051661]
[1750628081213,2.69094421,2183.3,2183.1,4.63731661]
[1750628081412,2.69094421,2183.3,2183.2,4.58043239]
[1750628081721,2.69094421,2183.3,2183.2,15.41113239]
[1750628081888,2.64924421,2183.3,2183.2,15.41113239]
[1750628082922,2.64924421,2183.3,2183.2,26.14501673]
[1750628083133,2.9144,2184.3,2183.9,4.57880493]
[1750628083277,2.9144,2184.3,2184.0,4.57873981]
[1750628084311,0.0575,2184.8,2184.1,0.04578075]
[1750628084509,0.55,2184.7,2184.0,0.04578015]
[1750628084735,0.0575,2184.6,2184.1,4.57852813]
[1750628084942,2.9246,2184.9,2184.2,0.04578015]
[1750628085117,7.536,2184.8,2184.2,4.62392719]
[1750628085728,0.8286,2184.9,2184.2,4.57830902]
[1750628085936,0.8286,2184.9,2184.3,4.57797056]
[1750628086099,8.3646,2184.9,2184.4,0.04577238]
[1750628086299,0.0575,2184.8,2184.4,4.62365583]
[1750628086999,0.7711,2184.9,2184.5,4.57762134]
[1750628087435,0.8286,2184.9,2184.5,4.57762134]
[1750628087732,0.7711,2184.9,2184.6,4.62322103]
[1750628088028,0.0575,2184.8,2184.5,1.00737119]
[1750628088235,0.0575,2184.8,2184.4,4.5778531]
[1750628088528,0.0575,2184.8,2184.3,4.57804971]
[1750628088707,0.8286,2184.9,2184.3,4.57804971]
[1750628089033,0.7711,2184.9,2184.4,4.57790945]
[1750628089325,0.0575,2184.8,2184.4,4.57790945]
[1750628089635,0.0575,2184.8,2184.5,0.45779095]
[1750628090630,0.0575,2184.8,2184.2,10.0]
[1750628090853,7.534,2184.9,2184.1,10.0]
[1750628090854,0.0575,2184.6,2184.1,10.0]
[1750628093035,2.8491,2184.7,2184.1,10.0]
[1750628093243,0.0575,2184.6,2184.1,10.0]
[1750628093738,2.8491,2184.7,2184.1,10.0]
[1750628093909,0.0575,2184.6,2184.2,6.03619167]
[1750628094111,0.0575,2184.6,2184.2,1.45786803]
[1750628094542,2.8491,2184.7,2184.1,4.62425106]
[1750628094731,2.9066,2184.7,2184.1,0.04577916]
[1750628095644,0.0575,2184.6,2184.1,0.04577916]
[1750628096816,0.0575,2184.6,2184.1,4.62426574]
[1750628099346,0.0575,2184.6,2184.1,0.04577916]
[1750628099540,0.0575,2184.6,2184.1,3.41827135]
[1750628099750,0.0575,2184.6,2184.1,7.99678067]
[1750628100122,2.8491,2184.7,2184.1,7.99678067]
[1750628100323,0.0575,2184.6,2184.1,7.99678067]
[1750628100520,0.0575,2184.6,2184.1,3.41827135]
[1750628100718,0.0575,2184.6,2183.9,0.0238]
[1750628101214,0.0575,2184.6,2183.8,10.46966659]
[1750628101419,0.0575,2184.4,2183.8,10.46966659]
[1750628101662,0.0575,2184.4,2183.8,0.46966659]
[1750628101822,0.7898,2184.3,2183.8,4.57916898]
[1750628102022,0.7898,2184.3,2183.7,15.07862425]
[1750628102023,0.0575,2184.2,2183.7,15.07862425]
[1750628102358,0.0575,2184.2,2183.8,2.04349934]
[1750628103058,0.7898,2184.3,2183.8,2.04349934]
[1750628103257,0.7898,2184.3,2183.8,2.08928588]
[1750628103414,0.0575,2184.2,2183.8,2.08928588]
[1750628103618,2.1445,2184.2,2183.8,2.08928588]
[1750628104060,2.087,2184.2,2183.9,1.66685884]
[1750628104455,2.1445,2184.2,2183.9,1.66685884]
[1750628104775,2.1445,2184.2,2183.9,11.66685884]
[1750628105068,2.087,2184.2,2183.9,6.24564172]
[1750628105267,0.7898,2184.3,2183.9,10.0]
[1750628105561,11.001,2185.0,2184.3,4.57793848]
[1750628105562,2.087,2184.5,2184.3,4.57793848]
[1750628105764,0.7898,2184.6,2184.3,4.57793848]
[1750628105974,2.8768,2184.8,2184.4,4.62368898]
[1750628106263,2.8768,2184.8,2184.4,5.57006774]
[1750628106474,2.8768,2184.8,2184.4,5.56997505]
[1750628106647,2.8768,2184.8,2184.4,5.54617505]
[1750628108837,2.8768,2184.8,2184.4,5.56997505]
[1750628109569,0.7898,2184.8,2184.4,5.56997505]
[1750628109786,0.7898,2184.8,2184.5,4.57769198]
[1750628109943,0.8181,2185.3,2184.6,0.06957064]
[1750628110137,0.8181,2185.3,2184.7,4.57711272]
[1750628110337,0.0575,2185.2,2184.8,0.04576455]
[1750628110837,8.3481,2185.3,2184.8,4.62283119]
[1750628111037,8.4056,2185.3,2184.8,4.62283119]
[1750628111295,0.8181,2185.3,2184.8,0.96815668]
[1750628111446,0.8181,2185.3,2185.0,4.57662429]
[1750628111641,0.8181,2185.3,2185.1,0.0457599]
[1750628112137,0.8181,2185.3,2185.0,0.04575989]
[1750628112343,0.8181,2185.3,2185.0,4.57662631]
[1750628112652,0.8181,2185.3,2185.0,5.63153614]
[1750628112974,2.8758,2185.5,2185.0,1.05490983]
[1750628113175,2.9333,2185.5,2185.1,0.04575975]
[1750628114378,0.0622,2185.4,2185.1,0.04575975]
[1750628117282,2.938,2185.5,2185.1,0.04575975]
[1750628117493,2.938,2185.5,2185.1,1.07117599]
[1750628117662,2.8758,2185.5,2185.1,0.04575975]
[1750628117959,0.0622,2185.4,2185.1,0.04575975]
[1750628119055,0.0622,2185.4,2185.0,0.04575934]
[1750628119385,7.5892,2185.4,2185.0,0.04575934]
[1750628119687,2.087,2185.5,2185.2,0.7998]
[1750628120183,9.614,2185.5,2185.2,1.34440066]
[1750628120575,9.614,2185.5,2185.2,5.92062764]
[1750628120771,9.614,2185.5,2185.2,5.94442764]
[1750628120973,2.087,2185.5,2185.3,4.62170971]
[1750628121286,2.087,2185.5,2185.4,4.57582135]
[1750628121490,3.52633122,2185.8,2185.5,5.39915409]
[1750628121491,2.64483122,2185.8,2185.5,5.39915409]
[1750628121690,0.8193,2186.4,2185.7,0.0238]
[1750628121857,7.526,2186.3,2185.8,4.57478837]
[1750628122059,7.526,2186.2,2185.9,4.62046941]
[1750628122273,7.526,2186.3,2186.0,4.57455786]
[1750628123304,2.1422,2186.4,2186.1,0.04573936]
[1750628124177,0.55,2186.2,2186.1,0.04573936]
[1750628124377,0.0622,2186.1,2185.5,0.0457392]
[1750628124677,0.0622,2186.1,2185.4,14.57575015]
[1750628124877,0.0622,2186.1,2185.4,4.57575015]
[1750628125079,0.0622,2186.1,2185.5,0.53590502]
[1750628126017,0.0622,2186.1,2185.5,1.00103727]
[1750628127620,0.0622,2186.1,2185.5,1.04678719]
[1750628129617,0.0622,2186.1,2185.5,5.62238032]
[1750628130311,0.0622,2186.1,2185.5,1.04678719]
[1750628130490,0.0622,2186.1,2185.5,0.46513225]
[1750628130680,0.0622,2186.1,2185.4,0.04574989]
[1750628130877,0.0622,2185.9,2185.2,0.54460066]
[1750628131080,0.0622,2185.7,2185.3,10.0]
[1750628131318,0.0622,2185.7,2184.9,10.0]
[1750628131475,0.7658,2185.6,2184.8,5.41986059]
[1750628131681,0.0622,2185.5,2184.9,4.57684928]
[1750628131892,0.7658,2185.6,2185.0,0.54196493]
[1750628132103,0.0622,2185.5,2185.0,0.54196493]
[1750628132712,0.7658,2185.6,2185.0,0.54196493]
[1750628133081,0.0622,2185.3,2184.6,0.8235]
[1750628133280,2.08,2185.3,2184.7,0.0457675]
[1750628133588,2.08,2185.3,2184.7,10.0457675]
[1750628133777,2.08,2185.3,2184.7,10.0]
[1750628133975,2.08,2185.3,2184.7,1.1808965]
[1750628134188,0.0622,2185.0,2184.6,10.0]
[1750628134394,0.0622,2185.0,2184.6,4.57749435]
[1750628134911,0.0622,2185.0,2184.5,14.5776248]
[1750628135113,0.0622,2185.0,2184.7,10.0]
[1750628138719,0.0622,2185.0,2184.5,15.03404626]
[1750628138924,0.0622,2185.0,2184.6,1.58584463]
[1750628139790,0.0622,2185.0,2184.2,15.38369625]
[1750628139791,0.0622,2184.8,2184.2,15.38369625]